bitfinex/quotes_BTCUSD_20220226
["timestamp","ask_amount","ask_price","bid_price","bid_amount"]
[1645882512016,0.00031451,39170.0,39167.0,0.13780847]
[1645882512622,0.00031451,39170.0,39168.0,0.377487]
[1645882512818,0.00031451,39170.0,39168.0,0.677487]
[1645882513016,0.0999,39176.0,39168.0,0.3]
[1645882513217,0.08,39175.0,39168.0,0.33224421]
[1645882513417,0.00031451,39170.0,39168.0,0.03224421]
[1645882513616,0.00031451,39170.0,39167.0,0.13780847]
[1645882514016,0.08,39175.0,39167.0,0.13780847]
[1645882514217,0.08,39175.0,39173.0,0.1281994]
[1645882514618,0.081,39175.0,39173.0,0.1281994]
[1645882516065,0.08,39175.0,39173.0,0.1281994]
[1645882517067,0.08,39175.0,39174.0,0.677487]
[1645882517265,0.08,39175.0,39174.0,0.377487]
[1645882518268,0.08,39175.0,39173.0,0.1281994]
[1645882518523,0.08,39175.0,39171.0,0.03224421]
[1645882518726,0.081,39175.0,39170.0,0.377487]
[1645882519124,0.081,39175.0,39169.0,0.0514]
[1645882519324,0.08131527,39175.0,39169.0,0.0514]
[1645882519923,0.08031527,39175.0,39169.0,0.0514]
[1645882520127,0.08,39175.0,39169.0,0.0514]
[1645882520324,0.08,39175.0,39166.0,0.16874883]
[1645882520628,0.00031527,39174.0,39166.0,0.16874883]
[1645882521223,0.08,39175.0,39166.0,0.16874883]
[1645882521626,0.00031522,39172.0,39166.0,0.16874883]
[1645882522026,0.00031522,39172.0,39168.0,0.02565]
[1645882522465,0.08,39175.0,39169.0,0.377487]
[1645882522770,0.00131523,39172.0,39169.0,0.377487]
[1645882523664,0.00056966,39172.0,39169.0,0.377487]
[1645882523865,0.00031514,39172.0,39169.0,0.377487]
[1645882524065,0.00031514,39172.0,39171.0,0.15765615]
[1645882524667,0.00031514,39172.0,39171.0,0.53514315]
[1645882524868,0.08,39175.0,39172.0,0.377487]
[1645882525269,0.00031509,39173.0,39172.0,0.377487]
[1645882525569,0.00031509,39173.0,39171.0,0.15765615]
[1645882526016,0.08,39175.0,39171.0,0.15765615]
[1645882526417,0.00031509,39174.0,39171.0,0.15765615]
[1645882527018,0.00031509,39174.0,39172.0,0.377487]
[1645882527218,0.08,39175.0,39172.0,0.377487]
[1645882527618,0.00031508,39174.0,39172.0,0.377487]
[1645882528018,0.00031508,39174.0,39173.0,0.377487]
[1645882528219,0.00031508,39174.0,39172.0,0.377487]
[1645882528422,0.08,39175.0,39171.0,0.15765615]
[1645882528820,0.08032066,39175.0,39171.0,0.15765615]
[1645882529120,0.08032066,39175.0,39170.0,6.772e-05]
[1645882529121,0.38032066,39175.0,39170.0,6.772e-05]
[1645882529519,0.38032066,39175.0,39171.0,0.377487]
[1645882529771,0.08,39175.0,39171.0,0.377487]
[1645882530070,0.00032067,39174.0,39171.0,0.377487]
[1645882530871,0.08,39175.0,39171.0,0.377487]
[1645882531078,0.00032067,39174.0,39171.0,0.377487]
[1645882531272,0.08,39175.0,39174.0,0.00064134]
[1645882533722,0.120178,39175.0,39174.0,0.00064134]
[1645882533915,0.420178,39175.0,39174.0,0.00064134]
[1645882534917,0.38,39175.0,39174.0,0.00064134]
[1645882535217,0.420178,39175.0,39174.0,0.00064134]
[1645882535717,0.421178,39175.0,39174.0,0.00064134]
[1645882536422,0.340178,39175.0,39174.0,0.00064134]
[1645882536618,0.24453665,39175.0,39174.0,0.00064134]
[1645882536818,0.28471465,39175.0,39174.0,0.00064134]
[1645882537472,0.48551465,39175.0,39174.0,0.00064134]
[1645882538674,0.53691465,39175.0,39174.0,0.00064134]
[1645882539273,0.33611465,39175.0,39174.0,0.00064134]
[1645882539473,0.33711465,39175.0,39174.0,0.00064134]
[1645882540776,0.33611465,39175.0,39174.0,0.00064134]
[1645882545567,0.33711465,39175.0,39174.0,0.00064134]
[1645882546769,0.33611465,39175.0,39174.0,0.00064134]
[1645882547167,0.091578,39175.0,39174.0,0.00064134]
[1645882547366,0.391578,39175.0,39174.0,0.00064134]
[1645882550820,0.441578,39175.0,39174.0,0.00064134]
[1645882551022,0.491578,39175.0,39174.0,0.00064134]
[1645882551420,0.492578,39175.0,39174.0,0.00064134]
[1645882553267,0.491578,39175.0,39174.0,0.00064134]
[1645882553470,0.741478,39175.0,39174.0,0.00064134]
[1645882553968,0.441478,39175.0,39174.0,0.00064134]
[1645882554169,0.741478,39175.0,39174.0,0.00064134]
[1645882554370,0.441478,39175.0,39174.0,0.00064134]
[1645882555374,0.83411406,39175.0,39174.0,0.00064134]
[1645882555572,1.00779454,39175.0,39174.0,0.00064134]
[1645882555771,2.81640868,39175.0,39174.0,0.00064134]
[1645882556022,2.88313023,39175.0,39174.0,0.00064134]
[1645882556622,1.69471747,39175.0,39174.0,0.00064134]
[1645882556823,1.49391747,39175.0,39174.0,0.00064134]
[1645882557023,2.49391747,39175.0,39174.0,0.00064134]
[1645882557220,3.27821747,39175.0,39174.0,0.00064134]
[1645882557620,3.29165429,39175.0,39174.0,0.00064134]
[1645882557821,3.69125429,39175.0,39174.0,0.00064134]
[1645882558020,2.90695429,39175.0,39174.0,0.00064134]
[1645882558822,2.89351747,39175.0,39174.0,0.00064134]
[1645882559022,2.90601199,39175.0,39174.0,0.00064134]
[1645882559423,3.14614404,39175.0,39174.0,0.00064134]
[1645882559627,3.54674404,39175.0,39174.0,0.00064134]
[1645882560074,4.33104404,39175.0,39174.0,0.00064134]
[1645882560277,4.48325065,39175.0,39174.0,0.00064134]
[1645882560476,0.7843,39172.0,39166.0,0.00094388]
[1645882560679,1.88047855,39167.0,39166.0,0.00094388]
[1645882560877,2.29174094,39167.0,39166.0,0.00094388]
[1645882561078,0.040178,39164.0,39144.0,0.24991198]
[1645882561279,1.1857,39163.0,39162.0,4.21e-06]
[1645882561482,1.1857,39163.0,39158.0,3.701e-05]
[1645882561483,0.9343,39161.0,39158.0,3.701e-05]
[1645882561678,1.15,39158.0,39143.0,0.05]
[1645882561879,0.127819,39155.0,39143.0,0.05]
[1645882562078,0.641478,39154.0,39143.0,0.05]
[1645882562283,0.691478,39154.0,39143.0,0.05]
[1645882562478,0.741478,39154.0,39151.0,0.005]
[1645882562681,0.040178,39152.0,39151.0,0.005]
[1645882562880,0.091578,39152.0,39151.0,0.005]
[1645882563180,0.141578,39152.0,39151.0,0.005]
[1645882563625,0.441578,39152.0,39151.0,0.005]
[1645882564524,0.641378,39152.0,39151.0,0.005]
[1645882565925,0.734288,39152.0,39151.0,0.005]
[1645882566926,0.994288,39152.0,39151.0,0.005]
[1645882567373,1.61467319,39152.0,39151.0,0.005]
[1645882569074,2.49897318,39152.0,39151.0,0.005]
[1645882569272,3.5715773,39152.0,39150.0,1.73e-05]
[1645882569473,3.5715773,39152.0,39130.0,0.05]
[1645882569474,0.063926,39145.0,39130.0,0.05]
[1645882569672,0.040178,39139.0,39130.0,0.05]
[1645882569873,0.040178,39137.0,39130.0,0.05]
[1645882570079,0.3,39139.0,39137.0,0.028956]
[1645882570273,0.0514,39138.0,39137.0,0.028956]
[1645882570473,0.3514,39138.0,39137.0,0.028956]
[1645882570672,0.1014,39138.0,39137.0,0.028956]
[1645882571123,0.39057678,39138.0,39137.0,0.028956]
[1645882571623,0.39157678,39138.0,39137.0,0.028956]
[1645882572823,0.39057678,39138.0,39137.0,0.028956]
[1645882575672,0.39157678,39138.0,39137.0,0.028956]
[1645882576774,0.39057678,39138.0,39137.0,0.028956]
[1645882577674,0.39157678,39138.0,39137.0,0.028956]
[1645882577878,0.39157678,39138.0,39137.0,0.02870058]
[1645882578823,0.39057678,39138.0,39137.0,0.02870058]
[1645882579623,0.39157678,39138.0,39137.0,0.02870058]
[1645882580025,0.09157678,39138.0,39137.0,0.02870058]
[1645882580227,0.04017678,39138.0,39137.0,0.02870058]
[1645882580826,0.03917678,39138.0,39137.0,0.02870058]
[1645882581426,0.33917678,39138.0,39137.0,0.02870058]
[1645882581627,0.34017678,39138.0,39137.0,0.02870058]
[1645882581830,0.04017678,39138.0,39137.0,0.02870058]
[1645882582125,0.04017678,39138.0,39137.0,0.16329032]
[1645882582767,0.03917678,39138.0,39137.0,0.16329032]
[1645882583169,0.2498,39139.0,39137.0,0.16329032]
[1645882583368,0.08,39138.0,39137.0,0.16329032]
[1645882583569,0.081,39138.0,39137.0,0.16329032]
[1645882584871,0.08,39138.0,39137.0,0.16329032]
[1645882585771,0.08,39138.0,39137.0,0.15829032]
[1645882586024,0.38,39138.0,39137.0,0.15829032]
[1645882586225,0.08,39138.0,39137.0,0.15829032]
[1645882587625,0.38,39138.0,39137.0,0.15829032]
[1645882587828,0.081,39138.0,39137.0,0.15829032]
[1645882588029,0.081,39138.0,39137.0,0.02370058]
[1645882588227,0.382,39138.0,39137.0,0.02370058]
[1645882588826,0.082,39138.0,39137.0,0.02370058]
[1645882589026,0.08,39138.0,39137.0,0.02370058]
[1645882589226,0.38,39138.0,39137.0,0.02370058]
[1645882589626,0.08,39138.0,39137.0,0.02370058]
[1645882590279,0.08,39141.0,39137.0,0.02370058]
[1645882590479,0.08,39141.0,39140.0,0.03224421]
[1645882590681,0.08,39141.0,39140.0,0.41000921]
[1645882591078,0.08,39141.0,39140.0,0.55561277]
[1645882591280,0.08,39141.0,39140.0,0.17784777]
[1645882591477,0.08,39141.0,39140.0,0.55561277]
[1645882592680,0.08,39141.0,39140.0,0.17784777]
[1645882593284,0.08,39141.0,39140.0,0.55561277]
[1645882593826,0.08,39141.0,39140.0,0.17784777]
[1645882594022,0.08,39141.0,39140.0,0.17884777]
[1645882594222,0.08,39141.0,39140.0,0.55661277]
[1645882594423,0.08,39141.0,39140.0,0.17884777]
[1645882595224,0.08,39141.0,39140.0,0.20349777]
[1645882595426,0.08,39141.0,39140.0,0.55561277]
[1645882596025,0.081,39141.0,39140.0,0.55561277]
[1645882596625,0.081,39141.0,39140.0,0.17784777]
[1645882596825,0.081,39141.0,39140.0,0.58126277]
[1645882597026,0.081,39141.0,39140.0,1.81696277]
[1645882597276,0.0999,39148.0,39143.0,0.02565]
[1645882597576,0.0999,39148.0,39147.0,0.403415]
[1645882597775,0.0999,39148.0,39147.0,0.754815]
[1645882597975,0.00030862,39159.0,39155.0,0.148787]
[1645882598174,0.3,39164.0,39155.0,0.148787]
[1645882598575,0.00030865,39159.0,39155.0,0.148787]
[1645882599377,0.3,39166.0,39155.0,0.148787]
[1645882599877,0.00031021,39159.0,39155.0,0.148787]
[1645882600278,0.00031021,39159.0,39153.0,0.03224421]
[1645882600677,0.4,39166.0,39153.0,0.03224421]
[1645882601030,0.00031021,39159.0,39153.0,0.03224421]
[1645882601223,0.00031021,39159.0,39150.0,0.1243]
[1645882601424,0.09999999,39156.0,39148.0,0.2199103]
[1645882601622,0.2499,39157.0,39148.0,0.2199103]
[1645882601821,0.75129999,39157.0,39148.0,0.2196]
[1645882602121,0.7013,39157.0,39148.0,0.25384421]
[1645882602321,0.4013,39157.0,39148.0,0.03455449]
[1645882602521,0.3,39156.0,39148.0,0.00231028]
[1645882603020,0.3,39156.0,39148.0,0.002]
[1645882603220,0.3,39156.0,39148.0,0.00231018]
[1645882603821,0.3,39156.0,39148.0,0.00031018]
[1645882604021,0.301,39156.0,39148.0,0.00031018]
[1645882604322,0.301,39156.0,39145.0,0.03224421]
[1645882604522,0.301,39156.0,39148.0,0.00031018]
[1645882605374,0.3,39156.0,39145.0,0.03224421]
[1645882605574,0.3,39156.0,39148.0,0.00031018]
[1645882605973,0.301,39156.0,39148.0,0.00031018]
[1645882606876,0.301,39156.0,39148.0,0.00031019]
[1645882606877,0.16390285,39155.0,39148.0,0.00031019]
[1645882607078,0.09999999,39149.0,39148.0,0.00031019]
[1645882607276,0.49999999,39149.0,39148.0,0.00031019]
[1645882607676,0.55139999,39149.0,39148.0,0.00031019]
[1645882607875,0.55139999,39149.0,39136.0,0.1645]
[1645882608075,0.06391901,39146.0,39135.0,0.15029122]
[1645882608275,0.39999999,39145.0,39141.0,0.00124093]
[1645882608522,0.4,39145.0,39141.0,0.00124093]
[1645882609122,0.4,39145.0,39137.0,0.02370058]
[1645882609322,0.4,39145.0,39141.0,0.00031021]
[1645882610125,0.09999999,39144.0,39141.0,0.00031021]
[1645882610325,0.3,39143.0,39137.0,0.02370058]
[1645882610526,0.05,39142.0,39141.0,0.000311]
[1645882610724,0.4014,39142.0,39141.0,0.000311]
[1645882611433,0.4014,39142.0,39137.0,0.02370058]
[1645882611626,0.063926,39141.0,39140.0,0.000311]
[1645882611827,0.415326,39141.0,39140.0,0.000311]
[1645882612028,0.465326,39141.0,39140.0,0.000311]
[1645882612674,0.465326,39141.0,39137.0,0.02370058]
[1645882612877,0.465326,39141.0,39139.0,0.00031101]
[1645882613175,0.3,39140.0,39139.0,0.00031101]
[1645882613375,0.4014,39140.0,39139.0,0.00031101]
[1645882613574,0.50139999,39140.0,39139.0,0.00031101]
[1645882613774,0.4014,39140.0,39139.0,0.00031101]
[1645882613977,0.4014,39140.0,39137.0,0.02370058]
[1645882613978,0.4024,39140.0,39137.0,0.02370058]
[1645882614176,0.4024,39140.0,39138.0,0.00031091]
[1645882614375,0.3,39139.0,39138.0,0.00031091]
[1645882614577,0.45139999,39139.0,39138.0,0.00031091]
[1645882614775,0.50139999,39139.0,39138.0,0.00031091]
[1645882615175,0.50139999,39139.0,39137.0,0.02370058]
[1645882615375,0.1014,39139.0,39137.0,0.02401149]
[1645882615575,0.05,39138.0,39137.0,0.02401149]
[1645882615777,0.1014,39139.0,39137.0,0.02401149]
[1645882616034,0.1014,39139.0,39137.0,0.01404164]
[1645882616225,0.1014,39139.0,39137.0,0.01373073]
[1645882617026,0.4014,39139.0,39137.0,0.01373073]
[1645882617226,0.3,39138.0,39137.0,0.01373073]
[1645882617627,0.35,39138.0,39137.0,0.01373073]
[1645882619131,0.05,39138.0,39137.0,0.01373073]
[1645882619881,0.31,39138.0,39137.0,0.01373073]
[1645882620082,0.61,39138.0,39137.0,0.01373073]
[1645882620282,0.40999999,39138.0,39137.0,0.01373073]
[1645882620480,0.70999999,39138.0,39137.0,0.01373073]
[1645882620681,0.61,39138.0,39137.0,0.01373073]
[1645882620883,0.31,39138.0,39137.0,0.01373073]
[1645882621082,0.61,39138.0,39137.0,0.01373073]
[1645882621480,0.31,39138.0,39137.0,0.01373073]
[1645882621684,0.61,39138.0,39137.0,0.01373073]
[1645882623920,0.6614,39138.0,39137.0,0.01373073]
[1645882624123,0.76239999,39138.0,39137.0,0.01373073]
[1645882625323,0.76139999,39138.0,39137.0,0.01373073]
[1645882626124,0.76239999,39138.0,39137.0,0.01373073]
[1645882627375,0.76139999,39138.0,39137.0,0.01373073]
[1645882627977,0.6614,39138.0,39137.0,0.01373073]
[1645882628777,0.76139999,39138.0,39137.0,0.01373073]
[1645882629780,0.6614,39138.0,39137.0,0.01373073]
[1645882630178,0.6624,39138.0,39137.0,0.01373073]
[1645882630381,0.3624,39138.0,39137.0,0.01373073]
[1645882632026,0.3614,39138.0,39137.0,0.01373073]
[1645882632824,0.6614,39138.0,39137.0,0.01373073]
[1645882633224,0.7414,39138.0,39137.0,0.01373073]
[1645882635377,0.64,39138.0,39137.0,0.01373073]
[1645882635579,0.39,39138.0,39137.0,0.01373073]
[1645882636379,0.39,39138.0,39137.0,0.1670531]
[1645882636579,0.39,39138.0,39137.0,0.16695444]
[1645882636780,0.34,39138.0,39137.0,0.16695444]
[1645882637087,0.002,39143.0,39138.0,0.98598509]
[1645882637384,0.09999999,39144.0,39138.0,0.23598509]
[1645882637581,0.3704,39147.0,39138.0,0.2682293]
[1645882637779,0.2499,39147.0,39138.0,0.2682293]
[1645882638080,0.3,39146.0,39141.0,0.00031687]
[1645882638283,0.34989999,39147.0,39141.0,0.00031687]
[1645882638525,0.3,39146.0,39141.0,0.00031687]
[1645882638925,0.09999999,39144.0,39141.0,0.00031687]
[1645882639125,0.09999999,39144.0,39138.0,0.2682293]
[1645882639325,0.09999999,39144.0,39142.0,0.00030886]
[1645882639525,0.14999999,39144.0,39142.0,0.00030886]
[1645882639724,0.05,39144.0,39142.0,0.00030886]
[1645882639928,0.4,39146.0,39142.0,0.00030886]
[1645882640127,0.001,39144.0,39142.0,0.00030886]
[1645882640329,0.001,39144.0,39138.0,0.2682293]
[1645882640527,0.001,39144.0,39142.0,0.00030203]
[1645882640929,0.09999999,39143.0,39142.0,0.00030203]
[1645882641531,0.09999999,39143.0,39138.0,0.23598509]
[1645882641731,0.3,39142.0,39141.0,0.00030203]
[1645882641931,0.09999999,39143.0,39141.0,0.00030203]
[1645882642133,0.10099999,39143.0,39141.0,0.00030203]
[1645882642778,0.3,39142.0,39138.0,0.23598509]
[1645882642974,0.3,39142.0,39140.0,0.00029222]
[1645882643173,0.16492099,39143.0,39140.0,0.00029222]
[1645882643373,0.16392099,39143.0,39140.0,0.00029222]
[1645882643874,0.16392099,39143.0,39138.0,0.23598509]
[1645882644074,0.35,39142.0,39138.0,0.23598509]
[1645882644278,0.35,39142.0,39140.0,0.00029295]
[1645882644279,0.46392596,39142.0,39140.0,0.00029295]
[1645882644482,0.39999999,39141.0,39140.0,0.00029295]
[1645882644676,0.44999999,39141.0,39140.0,0.00029295]
[1645882645080,0.44999999,39141.0,39138.0,0.23598509]
[1645882645276,0.09999999,39139.0,39138.0,0.23098509]
[1645882646134,0.301,39139.0,39138.0,0.23098509]
[1645882646334,0.40034944,39139.0,39138.0,0.23098509]
[1645882646538,0.50034944,39139.0,39138.0,0.23098509]
[1645882646738,0.55174944,39139.0,39138.0,0.23098509]
[1645882647538,0.55074944,39139.0,39138.0,0.23098509]
[1645882648141,0.55174944,39139.0,39138.0,0.23098509]
[1645882649242,1.3456213,39139.0,39138.0,0.23098509]
[1645882649439,0.5603213,39139.0,39138.0,0.23098509]
[1645882650181,0.55074944,39139.0,39138.0,0.23098509]
[1645882651481,0.6647376,39139.0,39138.0,0.23098509]
[1645882651682,0.7647376,39139.0,39138.0,0.23098509]
[1645882652482,1.5490376,39139.0,39138.0,0.23098509]
[1645882652682,0.77435365,39139.0,39138.0,0.23098509]
[1645882652884,0.7647376,39139.0,39138.0,0.23098509]
[1645882653731,1.5490376,39139.0,39138.0,0.23098509]
[1645882653930,0.77397321,39139.0,39138.0,0.23098509]
[1645882654331,0.7647376,39139.0,39138.0,0.23098509]
[1645882655231,0.7657376,39139.0,39138.0,0.23098509]
[1645882655633,0.71567844,39139.0,39138.0,0.23098509]
[1645882655831,0.66427844,39139.0,39138.0,0.23098509]
[1645882656232,0.56427844,39139.0,39138.0,0.23098509]
[1645882656431,0.49934944,39139.0,39138.0,0.23098509]
[1645882656632,0.19999999,39139.0,39138.0,0.23098509]
[1645882657477,0.20099999,39139.0,39138.0,0.23098509]
[1645882657677,0.19999999,39139.0,39138.0,0.23098509]
[1645882658478,0.49999999,39139.0,39138.0,0.23098509]
[1645882658877,0.56392899,39139.0,39138.0,0.23098509]
[1645882659377,0.56492899,39139.0,39138.0,0.23098509]
[1645882660779,0.56392899,39139.0,39138.0,0.23098509]
[1645882661736,0.26392899,39139.0,39138.0,0.23098509]
[1645882661938,0.26392899,39139.0,39138.0,0.21281268]
[1645882663541,0.26492899,39139.0,39138.0,0.21281268]
[1645882664777,0.26392899,39139.0,39138.0,0.21281268]
[1645882665579,0.56492899,39139.0,39138.0,0.21281268]
[1645882666779,0.56392899,39139.0,39138.0,0.21281268]
[1645882668384,0.26392899,39139.0,39138.0,0.21281268]
[1645882671528,0.26492899,39139.0,39138.0,0.21281268]
[1645882672683,0.26392899,39139.0,39138.0,0.21281268]
[1645882675386,0.16392899,39139.0,39138.0,0.21906121]
[1645882675586,0.001,39139.0,39138.0,0.21906121]
[1645882676832,0.24989999,39140.0,39138.0,0.21906121]
[1645882679235,0.19999999,39140.0,39138.0,0.21906121]
[1645882679435,0.20099999,39140.0,39138.0,0.21906121]
[1645882679977,0.20099999,39140.0,39139.0,42.0]
[1645882680775,0.19999999,39140.0,39139.0,42.0]
[1645882681575,0.20099999,39140.0,39139.0,42.0]
[1645882682677,0.19999999,39140.0,39139.0,42.0]
[1645882683526,0.20099999,39140.0,39139.0,42.0]
[1645882684828,0.19999999,39140.0,39139.0,42.0]
[1645882685028,0.4384176,39142.0,39139.0,42.0]
[1645882685229,0.4384176,39142.0,39141.0,0.3]
[1645882685230,0.26,39142.0,39141.0,0.3]
[1645882685429,0.26,39142.0,39139.0,42.0]
[1645882685630,0.26,39142.0,39140.0,0.3]
[1645882687682,0.26,39142.0,39141.0,0.03224421]
[1645882687882,0.26,39142.0,39141.0,0.33224421]
[1645882689081,0.26,39142.0,39141.0,0.32746784]
[1645882689285,0.26,39142.0,39141.0,0.33767784]
[1645882689481,0.264,39142.0,39141.0,0.33767784]
[1645882690583,0.264,39142.0,39141.0,0.36332784]
[1645882690782,0.26,39142.0,39141.0,0.36332784]
[1645882691632,0.2143956,39149.0,39142.0,1.17565]
[1645882691633,0.006,39147.0,39142.0,1.17565]
[1645882691838,0.006,39147.0,39143.0,0.33586]
[1645882692033,0.006,39147.0,39144.0,0.403415]
[1645882692232,0.006,39147.0,39146.0,0.403415]
[1645882692532,0.006,39147.0,39146.0,0.703415]
[1645882692734,0.006,39147.0,39146.0,0.73088284]
[1645882692932,0.0999,39149.0,39147.0,0.14669622]
[1645882693132,0.0999,39149.0,39148.0,0.3]
[1645882693333,0.0999,39149.0,39147.0,0.14669622]
[1645882693533,0.1009,39149.0,39147.0,0.14669622]
[1645882695581,0.1009,39149.0,39148.0,0.3]
[1645882696782,0.1009,39149.0,39147.0,0.17234622]
[1645882696987,0.1009,39149.0,39147.0,0.17267905]
[1645882697284,0.1009,39149.0,39147.0,0.00033283]
[1645882697285,0.0999,39149.0,39147.0,0.00033283]
[1645882697684,0.0999,39149.0,39148.0,6.991e-05]
[1645882698636,0.09999999,39156.0,39149.0,41.9001]
[1645882699543,0.10099999,39156.0,39149.0,41.9001]
[1645882699938,0.12780734,39155.0,39149.0,41.9001]
[1645882700244,0.09999999,39151.0,39149.0,41.9001]
[1645882700438,0.0514,39150.0,39149.0,41.9001]
[1645882701037,0.115318,39150.0,39149.0,41.9001]
[1645882701239,0.364918,39150.0,39149.0,41.9001]
[1645882701539,0.365918,39150.0,39149.0,41.9001]
[1645882701937,0.73692161,39150.0,39149.0,41.9001]
[1645882702142,0.625918,39150.0,39149.0,41.9001]
[1645882702395,0.72972326,39150.0,39149.0,41.9001]
[1645882702998,0.48012326,39150.0,39149.0,41.9001]
[1645882703492,0.47912326,39150.0,39149.0,41.9001]
[1645882703693,0.36811965,39150.0,39149.0,41.9001]
[1645882703892,0.47912326,39150.0,39149.0,41.9001]
[1645882704094,0.36811965,39150.0,39149.0,41.9001]
[1645882704294,0.56791965,39150.0,39149.0,41.9001]
[1645882704700,0.67892326,39150.0,39149.0,41.9001]
[1645882705297,0.97892326,39150.0,39149.0,41.9001]
[1645882706444,1.76322326,39150.0,39149.0,41.9001]
[1645882706641,2.26272326,39150.0,39149.0,41.9001]
[1645882706844,2.36272326,39150.0,39149.0,41.9001]
[1645882707440,2.29880526,39150.0,39149.0,41.90016981]
[1645882707641,2.44386754,39150.0,39149.0,41.90016981]
[1645882708842,2.44486754,39150.0,39149.0,41.90016981]
[1645882709243,2.44586754,39150.0,39149.0,41.90016981]
[1645882709443,2.54586754,39150.0,39149.0,41.51658581]
[1645882709891,2.40080526,39150.0,39149.0,41.51658581]
[1645882710190,2.30080526,39150.0,39149.0,41.51658581]
[1645882710587,2.29880526,39150.0,39149.0,41.51658581]
[1645882710988,2.29980526,39150.0,39149.0,41.51658581]
[1645882711788,2.44486754,39150.0,39149.0,41.51658581]
[1645882711988,2.64466754,39150.0,39149.0,41.51658581]
[1645882712188,2.64366754,39150.0,39149.0,41.51658581]
[1645882712594,2.64366754,39150.0,39149.0,41.13306962]
[1645882712889,3.28716754,39150.0,39149.0,41.13306962]
[1645882714137,3.28616754,39150.0,39149.0,41.13306962]
[1645882714636,3.28616754,39150.0,39149.0,41.01306962]
[1645882715537,2.50186754,39150.0,39149.0,41.01306962]
[1645882716237,2.35680526,39150.0,39149.0,41.01306962]
[1645882716936,2.15700526,39150.0,39149.0,41.01306962]
[1645882717137,2.30206754,39150.0,39149.0,41.01306962]
[1645882718197,2.15700526,39150.0,39149.0,41.01306962]
[1645882718399,1.85700526,39150.0,39149.0,41.01306962]
[1645882719999,1.92091926,39150.0,39149.0,41.01306962]
[1645882720199,1.47151926,39150.0,39149.0,41.01306962]
[1645882720403,0.82901926,39150.0,39149.0,41.01306962]
[1645882720798,0.83001926,39150.0,39149.0,41.01306962]
[1645882721032,1.02981926,39150.0,39149.0,41.01306962]
[1645882722036,1.02881926,39150.0,39149.0,41.01306962]
[1645882725081,1.02981926,39150.0,39149.0,41.01306962]
[1645882726184,1.02881926,39150.0,39149.0,41.01306962]
[1645882727483,0.82901926,39150.0,39149.0,41.17573287]
[1645882731036,1.02981926,39150.0,39149.0,41.17573287]
[1645882731236,1.02981926,39150.0,39149.0,41.01306962]
[1645882732279,1.02881926,39150.0,39149.0,41.01306962]
[1645882733082,1.02981926,39150.0,39149.0,41.01306962]
[1645882733280,0.83001926,39150.0,39149.0,41.01306962]
[1645882733881,1.02981926,39150.0,39149.0,41.01306962]
[1645882734283,1.02881926,39150.0,39149.0,41.01306962]
[1645882735185,0.82901926,39150.0,39149.0,41.01306962]
[1645882736044,0.51520526,39150.0,39149.0,41.01306962]
[1645882736440,0.40420165,39150.0,39149.0,41.01306962]
[1645882736638,0.36,39150.0,39149.0,41.01306962]
[1645882737037,0.361,39150.0,39149.0,41.01306962]
[1645882737638,0.6109,39150.0,39149.0,41.01306962]
[1645882738440,0.92070361,39150.0,39149.0,41.01306962]
[1645882738746,0.6099,39150.0,39149.0,41.01306962]
[1645882738939,0.9201009,39150.0,39149.0,41.01306962]
[1645882739138,0.9715009,39150.0,39149.0,41.01306962]
[1645882740181,0.7717009,39150.0,39149.0,41.01306962]
[1645882740382,0.9715009,39150.0,39149.0,41.01306962]
[1645882740983,0.9725009,39150.0,39149.0,41.01295957]
[1645882742282,0.9715009,39150.0,39149.0,41.01295957]
[1645882743084,0.9725009,39150.0,39149.0,41.01295957]
[1645882744943,0.9715009,39150.0,39149.0,41.01295957]
[1645882745141,0.9725009,39150.0,39149.0,41.01295957]
[1645882746345,0.9715009,39150.0,39149.0,41.01295957]
[1645882749188,0.9725009,39150.0,39149.0,41.01295957]
[1645882749586,0.7727009,39150.0,39149.0,41.01295957]
[1645882750288,0.7717009,39150.0,39149.0,41.01295957]
[1645882751142,0.9715009,39150.0,39149.0,41.01295957]
[1645882751342,0.7717009,39150.0,39149.0,41.01295957]
[1645882755887,0.7203009,39150.0,39149.0,41.01295957]
[1645882757086,0.6203009,39150.0,39149.0,41.01295957]
[1645882759234,0.6213009,39150.0,39149.0,41.01295957]
[1645882760434,0.6203009,39150.0,39149.0,41.01295957]
[1645882760634,0.3704009,39150.0,39149.0,41.01295957]
[1645882761036,0.261,39150.0,39149.0,41.01295957]
[1645882762587,0.26,39150.0,39149.0,41.01295957]
[1645882762788,0.5099,39150.0,39149.0,41.01295957]
[1645882763287,0.6213009,39150.0,39149.0,41.01287043]
[1645882766133,0.5109,39150.0,39149.0,41.01287043]
[1645882766335,0.6203009,39150.0,39149.0,41.01287043]
[1645882766534,0.5099,39150.0,39149.0,41.01287043]
[1645882766734,0.6203009,39150.0,39149.0,41.01287043]
[1645882766935,0.5599,39150.0,39149.0,41.01287043]
[1645882767135,0.7203009,39150.0,39149.0,41.01287043]
[1645882767340,0.6099,39150.0,39149.0,41.01287043]
[1645882768236,0.26,39150.0,39149.0,41.01287043]
[1645882769039,0.26,39150.0,39149.0,41.04873043]
[1645882769437,0.26,39150.0,39149.0,41.03852043]
[1645882770285,0.1104009,39158.0,39151.0,0.02565]
[1645882770493,0.1104009,39158.0,39153.0,0.02565]
[1645882770494,0.0586009,39158.0,39153.0,0.02565]
[1645882770686,0.0586009,39158.0,39155.0,0.02565]
[1645882770987,1.10679183,39159.0,39157.0,0.05311784]
[1645882771183,1.08929183,39159.0,39157.0,0.05311784]
[1645882771386,0.003,39163.0,39159.0,0.02565]
[1645882771584,0.003,39163.0,39161.0,0.05311784]
[1645882772388,0.39999999,39169.0,39161.0,0.05311784]
[1645882772683,0.09999999,39169.0,39164.0,0.02746784]
[1645882772883,0.1998,39168.0,39164.0,0.02746784]
[1645882773085,0.54969999,39170.0,39164.0,0.02746784]
[1645882773842,0.54969999,39170.0,39159.0,0.02565]
[1645882774040,0.09999999,39167.0,39157.0,0.26984675]
[1645882774243,0.05,39167.0,39157.0,0.1182]
[1645882774441,0.1998,39160.0,39157.0,0.1182]
[1645882774639,0.1998,39160.0,39151.0,0.02746784]
[1645882774640,0.05,39159.0,39153.0,0.1994]
[1645882774840,0.05,39159.0,39152.0,0.02565]